Cogmind - Beta 14 @@@ ROGUE MODE // 2024.11.24 @ 22:55:46 Player: Suikeina Result: Destroyed by D-53 Grenadier with Mini Grenade Launcher Performance ------------- Evolutions (1) 500 Regions Visited (3) 600 Robots Destroyed (71) 355 Value Destroyed (1345) 1345 Prototype IDs (2) 40 Alien Tech Used (0) 0 Bonus (39) 39 TOTAL SCORE: 2879 Bonus ------- High Alert Combat Kills 39 Cogmind --------- Core Integrity 0/400 Matter 284/300 Energy 235/265 System Corruption 6% Temperature Cool (0) Movement Walking (190) Ox1 Location -9/Mines Parts ------- > --- POWER (1) -------- Improved Ion Engine > --- PROPULSION (3) --- Improved Aluminum Leg > --- UTILITY (3) ------ Medium Storage Unit Sensor Array Signal Interpreter > --- WEAPON (2) ------- Improved Medium Laser Rocket Launcher > --- INVENTORY (10) --- Large Storage Unit Hardened Medium Armor Plating Hardened Medium Armor Plating Improved Medium Laser Light Assault Rifle Light Assault Rifle Rocket Launcher Mini Grenade Launcher Mini Grenade Launcher Katana Peak State ------------ > --- POWER ------------ Reinforced Ion Engine > --- PROPULSION ------- Aluminum Leg Improved Aluminum Leg Improved Aluminum Leg > --- UTILITY ---------- Large Storage Unit Sensor Array Signal Interpreter > --- WEAPON ----------- Light Assault Rifle Heavy Assault Rifle > --- INVENTORY -------- Medium Storage Unit Sensor Array Hardened Medium Armor Plating Hardened Medium Armor Plating Light Assault Rifle Rocket Launcher Rocket Launcher Mini Grenade Launcher Mini Grenade Launcher Katana [Rating: 15] Favorites ----------- Power Light Ion Engine Engine Light Ion Engine Propulsion Aluminum Leg Treads Light Treads Leg Aluminum Leg Utility Sensor Array Device Sensor Array Storage Small Storage Unit Processor Signal Interpreter Weapon Light Assault Rifle Energy Gun Small Laser Ballistic Gun Light Assault Rifle Ballistic Cannon Light Cannon Launcher Mini Grenade Launcher Build | -11 -10 -9 -9 ------- Run | Yrd Mat Mat Min Slots Evolved 2 | . . 2 . Power . | . . . . Propulsion 1 | . . 1 . Utility 1 | . . 1 . Weapon . | . . . . Parts Attached 63 | 8 16 38 1 Power 8 | 1 2 5 . Engine 8 | 1 2 5 . Core . | . . . . Reactor . | . . . . Propulsion 15 | 2 3 10 . Treads 3 | . . 3 . Leg 12 | 2 3 7 . Wheel . | . . . . Hover . | . . . . Flight . | . . . . Utility 11 | 2 2 7 . Device 6 | 1 1 4 . Storage 4 | 1 . 3 . Processor 1 | . 1 . . Hackware . | . . . . Protection . | . . . . Artifact . | . . . . Weapon 29 | 3 9 16 1 Energy Gun 3 | 2 . 1 . Energy Cannon . | . . . . Ballistic Gun 9 | 1 2 6 . Ballistic Cannon 7 | . 4 3 . Launcher 10 | . 3 6 1 Special Weapon . | . . . . Impact Weapon . | . . . . Slashing Weapon . | . . . . Piercing Weapon . | . . . . Special Melee Weapon . | . . . . Unidentified Prototypes . | . . . . Parts Lost 7 | . . 7 . Power 2 | . . 2 . Propulsion 5 | . . 5 . Utility . | . . . . Weapon . | . . . . Highest Loss Streak 2 | . . 2 . To Critical Strikes . | . . . . Average Slot Usage (%) 93 | . 100 89 77 Engine 11 | . 14 9 11 Treads 1 | . . 1 . Leg 24 | . 28 23 11 Device 11 | . 12 11 11 Storage 12 | . 14 11 11 Processor 7 | . 1 11 11 Energy Gun 3 | . 4 2 11 Ballistic Gun 15 | . 14 16 11 Ballistic Cannon 5 | . 9 2 . Peak Build Rating 15 | 9 9 15 13 Average Rating 10 | 6 8 11 13 On Entrance 7 | . 9 8 13 Naked Turns . | . . . . Heaviest Build 35 | 11 13 35 22 Greatest Support 60 | 20 20 60 13 Greatest Overweight (x) 2 | 1 . 2 1 Average Overweight (x) . | . . . 1 Largest Inventory Capacity 15 | 8 8 15 10 Average Capacity 9 | 7 8 10 10 Most Carried 11 | 4 8 11 10 Average Carried 7 | 2 7 8 10 Final Capacity 10 | 8 8 10 10 Final Carried 10 | 3 8 10 10 Class Distribution -------------------- 52% | Mutant 47% | Scavenger-Mutant Dominant Class ---------------- Mutant | -10/Materials Scavenger-Mutant | -9/Materials Mutant | -9/Mines Resources | -11 -10 -9 -9 ----------- Run | Yrd Mat Mat Min Matter Collected 1632 | 302 371 959 . Remotely . | . . . . Salvage Created 2376 | 269 668 1439 . Parts 134 | 18 44 72 . Haulers Intercepted 3 | . . 3 . Recyclers Shooed 8 | . 2 6 . Parts Field Recycled . | . . . . Retrieved Matter . | . . . . Parts Self-Destructed . | . . . . Prevented . | . . . . Kills | -11 -10 -9 -9 ------- Run | Yrd Mat Mat Min Combat Hostiles Destroyed 39 | . 17 22 . Guns 22 | . 9 13 . Cannons 10 | . 7 3 . AOE 7 | . 1 6 . Classes Destroyed 11 | 3 3 5 . Worker 3 | 2 . 1 . Builder 2 | . . 2 . Tunneler 6 | 6 . . . Hauler 3 | . . 3 . Recycler 12 | 1 3 8 . Watcher 6 | . 3 3 . Swarmer 17 | . 9 8 . Grunt 13 | . 8 5 . Brawler 1 | . . 1 . Duelist 1 | . . 1 . Sentry 7 | . . 7 . Best Kill Streak 6 | 5 4 6 . Combat Bots Only 4 | . 3 4 . Max Kills in Single Turn 3 | 1 1 3 . Gunslinging 1 | . . 1 . Exploded 2 | . 1 2 . Melee . | . . . . Uniques/NPCs Destroyed . | . . . . Combat | -11 -10 -9 -9 -------- Run | Yrd Mat Mat Min Hostile Shots Fired 264 | . 93 166 5 Missed 79 | . 25 53 1 Damage Taken 2179 | . 669 1329 181 Core 474 | . 60 349 65 Absorbed by Shields . | . . . . Regen/Repaired (Parts) 97 | . . 97 . Core Remaining (%) 88 | 100 76 . . Volleys Fired 229 | 22 73 134 . Largest 2 | 2 2 2 . Hottest 76 | 60 60 76 . Shots Fired 455 | 44 145 266 . Gun 359 | 44 108 207 . Cannon 82 | . 34 48 . Launcher 14 | . 3 11 . Special . | . . . . Kinetic 365 | 22 107 236 . Thermal 76 | 22 35 19 . Explosive 14 | . 3 11 . Electromagnetic . | . . . . Robot Hit Streak 11 | 4 11 9 . Robot Miss Streak 7 | 4 5 7 . Penetration Max . | . . . . Secondary Targets 1 | . . 1 . Max Gunslinging Chain 1 | . . 1 . Shots Hit Robots 225 | 22 69 134 . Core Hits 123 | 13 39 71 . Critical Kills . | . . . . Critical Parts Destroyed 1 | . . 1 . Critical Strikes 3 | . 1 2 . Burn 1 | . . 1 . Destroy 1 | . . 1 . Blast 1 | . 1 . . Melee Attacks . | . . . . Impact . | . . . . Slashing . | . . . . Piercing . | . . . . Sneak Attacks . | . . . . Combat Hostiles . | . . . . Follow-up Attacks . | . . . . Damage Inflicted 3638 | 245 1060 2333 . Guns 1833 | 245 525 1063 . Cannons 805 | . 324 481 . Explosions 985 | . 203 782 . Melee . | . . . . Ramming 15 | . 8 7 . Kinetic 2153 | 90 641 1422 . Thermal 485 | 155 208 122 . Explosive 943 | . 203 740 . Electromagnetic 42 | . . 42 . Impact . | . . . . Slashing . | . . . . Piercing . | . . . . Highest Corruption 6 | . . 6 6 Average Corruption 4 | . . 4 6 Corruption Purged . | . . . . Corruption Blocked . | . . . . Effects 39 | . . 38 1 Message Errors 12 | . . 12 . Matter Fused 7 | . . 6 1 Heat Flow Errors 5 | . . 5 . Energy Discharges 6 | . . 6 . Parts Fused 1 | . . 1 . Data Loss (minor) 1 | . . 1 . Data Loss (major) 1 | . . 1 . Misfires 2 | . . 2 . Alerts 3 | . . 3 . Weapon Failures 1 | . . 1 . Overload Shots . | . . . . Overflow Damage 70 | . 32 38 . Projectiles 15 | . 15 . . Explosions 55 | . 17 38 . Melee . | . . . . Knockbacks 8 | . 3 5 . Impact . | . . . . Kinetic 8 | . 3 5 . Secondary . | . . . . Self-Inflicted Damage 56 | . . 56 . Shots 2 | . . 2 . Rammed . | . . . . Targets Rammed 4 | . 1 1 2 Kicked 4 | . 1 1 2 Crushed . | . . . . Highest Temperature 161 | 40 94 161 . Average Temperature 21 | 16 20 23 . Received Heat Transfer 549 | . 210 339 . Siege Activations . | . . . . Robots Corrupted . | . . . . Combat Hostiles . | . . . . Parts Fried . | . . . . Impact Corruptions . | . . . . Robots Melted . | . . . . Combat Hostiles . | . . . . Parts Melted 4 | . 1 3 . Heat Transferred 1158 | 350 475 333 . Parts Sabotaged . | . . . . Parts Stolen . | . . . . Parts Stripped . | . . . . Power Chain Reactions . | . . . . Alert | -11 -10 -9 -9 ------- Run | Yrd Mat Mat Min Peak Influence 511 | 45 338 511 199 Initial 199 | . 29 70 199 Average 246 | 16 172 331 199 Maximum Alert Level 2 | . 1 2 . Low Security (%) 44 | 100 75 14 100 Level 1 35 | . 24 48 . Level 2 19 | . . 37 . Level 3 . | . . . . Level 4 . | . . . . Level 5 . | . . . . High Security . | . . . . Max Security . | . . . . Squads Dispatched 5 | . 3 2 . Investigation 1 | . 1 . . Extermination . | . . . . Reinforcement 4 | . 2 2 . Assault . | . . . . Garrison . | . . . . Intercept . | . . . . Searches Triggered . | . . . . Construction Impeded 1 | . . 1 . Haulers Reinforced . | . . . . Active Scanning Responses . | . . . . Cargo Convoy Interrupts . | . . . . Stealth | -11 -10 -9 -9 --------- Run | Yrd Mat Mat Min Distress Signals 6 | . 3 3 . Communications Jammed . | . . . . Distress Signals . | . . . . Times Spotted 64 | . 26 36 2 Peak Tracking Total 6 | . 4 6 2 Tactical Retreats 5 | . 2 3 . Traps | -11 -10 -9 -9 ------- Run | Yrd Mat Mat Min Traps Triggered 5 | . 1 4 . Indirectly . | . . . . Trap Hack Attempts . | . . . . Triggered . | . . . . Disarmed . | . . . . Reprogrammed . | . . . . Reused . | . . . . Traps Extracted . | . . . . Installed . | . . . . Triggered . | . . . . Machines | -11 -10 -9 -9 ---------- Run | Yrd Mat Mat Min Machines Disabled 8 | . . 8 . Max in Single Turn 3 | . . 3 . Machines Repaired . | . . . . Machines Dismantled . | . . . . Machines Sabotaged . | . . . . Overloaded Fab Kills . | . . . . Hacking | -11 -10 -9 -9 --------- Run | Yrd Mat Mat Min Machines Accessed 6 | . 3 3 . Terminals 5 | . 3 2 . Fabricators . | . . . . Repair Stations 1 | . . 1 . Recycling Units . | . . . . Scanalyzers . | . . . . Garrison Access . | . . . . Total Hacks 8 | . 4 4 . Successful 6 | . 3 3 . Failed 2 | . 1 1 . Catastrophic . | . . . . Database Lockouts . | . . . . Manual . | . . . . Terminals 6 | . 4 2 . Fabricators . | . . . . Repair Stations 2 | . . 2 . Recycling Units . | . . . . Scanalyzers . | . . . . Garrison Access . | . . . . Terminal Hacks 4 | . 3 1 . Prototype ID Bank 1 | . 1 . . Alert Level 2 | . 1 1 . Locate Traps 1 | . 1 . . Fabricator Hacks . | . . . . Repair Station Hacks 2 | . . 2 . Scan Component 1 | . . 1 . Repair 1 | . . 1 . Recycling Unit Hacks . | . . . . Scanalyzer . | . . . . Garrison Access Hacks . | . . . . Unauthorized Hacks . | . . . . Terminals . | . . . . Fabricators . | . . . . Repair Stations . | . . . . Recycling Units . | . . . . Scanalyzers . | . . . . Garrison Access . | . . . . Data Cores Recovered . | . . . . Used . | . . . . Hacking Detections 1 | . . 1 . Full Trace Events . | . . . . Feedback Events . | . . . . Feedback Blocked . | . . . . Robot Schematics Acquired . | . . . . Robots Built . | . . . . Authchips . | . . . . Time . | . . . . Total Robot Build Rating . | . . . . Part Schematics Acquired . | . . . . Parts Built . | . . . . Authchips . | . . . . Time . | . . . . Total Part Build Rating . | . . . . Parts Repaired 1 | . . 1 . Time 32 | . . 32 . Parts Recycled . | . . . . Recycled Matter . | . . . . Retrieved Matter . | . . . . Retrieved Components . | . . . . Parts Scanalyzed . | . . . . Part Schematics Acquired . | . . . . Parts Damaged . | . . . . Bothacking | -11 -10 -9 -9 ------------ Run | Yrd Mat Mat Min Used RIF Installer . | . . . . Robots Hacked . | . . . . Non-combat . | . . . . Combat . | . . . . Robot Hacks Applied . | . . . . Relay Couplers Released . | . . . . Fabnet Peak Effective % . | . . . . Robots Rewired . | . . . . Allies Hacked . | . . . . Hacks Repelled . | . . . . Allies | -11 -10 -9 -9 -------- Run | Yrd Mat Mat Min Total Allies . | . . . . Largest Group . | . . . . Highest-Rated Group . | . . . . Highest-Rated Ally . | . . . . Total Orders . | . . . . Ally Attacks . | . . . . Total Damage . | . . . . Kills . | . . . . Allies Corrupted . | . . . . Allies Melted . | . . . . Intel | -11 -10 -9 -9 ------- Run | Yrd Mat Mat Min Robot Analysis Total . | . . . . Derelict Logs Recovered . | . . . . Drone Launches . | . . . . Drone Recoveries . | . . . . Exploration | -11 -10 -9 -9 ------------- Run | Yrd Mat Mat Min Turns Passed 3662 | 255 1386 1950 71 Spaces Moved 2229 | 149 923 1122 35 Core 10 | 10 . . . Treads 50 | . . 50 . Legs 2169 | 139 923 1072 35 Wheels . | . . . . Hover . | . . . . Flight . | . . . . Fastest Speed 50 | 50 120 120 190 Average Speed 126 | 117 120 130 190 Slowest Speed 260 | 120 120 260 190 Overloaded Moves . | . . . . Propulsion Burnouts . | . . . . Robots Hopped . | . . . . Cave-ins Triggered . | . . . . Exploration Rate (%) 44 | 8 88 71 12 Regions Visited 3 Branch Regions 1 Pre-discovered Areas . | . . . . Known Exits Taken 2 | . 1 1 . Unknown Exits Taken 1 | 1 . . . Scrap Searched 1 | . . . 1 Spaces Dug . | . . . . Terrain Destroyed 114 | . 33 81 . Melee . | . . . . Projectile . | . . . . AOE 114 | . 33 81 . Terrain Rammed . | . . . . Walls Destroyed . | . . . . Machines Disabled . | . . . . Actions | -11 -10 -9 -9 --------- Run | Yrd Mat Mat Min Total 2673 | 189 1071 1375 38 Wait 70 | . 30 40 . Move 2226 | 148 922 1121 35 Hop . | . . . . Pick Up 50 | 10 17 23 . Fast Attach 3 | . . 3 . Attach 26 | 8 3 15 . Detach 3 | 1 . 2 . Swap 34 | . 13 20 1 Drop 28 | . 12 16 . Fire 229 | 22 73 134 . Melee . | . . . . Ram . | . . . . Kick 4 | . 1 1 2 Crush . | . . . . Escape Stasis . | . . . . Rewire . | . . . . Trap . | . . . . Miscellaneous . | . . . . Route ------- -11/Scrapyard -10/Materials (discovered 4 exits: *Mat x3 / [*Min]) -9/Materials (discovered 4 exits: *Mat x3 / *Min) -9/Mines (discovered 1 exit: *Mat) History --------- Turn | Location | Event 5 | -11/Scrapyard | Discovered new exit (range 15) 256 | -11/Scrapyard | Entered Materials 314 | -10/Materials | Build established: Mutant 724 | -10/Materials | Discovered new exit (range 14) 819 | -10/Materials | Discovered new exit (range 10) 1197 | -10/Materials | Discovered new exit (range 8) 1273 | -10/Materials | Discovered new exit (range 13) 1515 | -10/Materials | Identified exit to Materials 1642 | -10/Materials | Entered another Materials area 1642 | -9/Materials | Evolved 2 slots: Propulsion x1, Utility x1 1680 | -9/Materials | Discovered new exit (range 16) 1728 | -9/Materials | Identified exit to Mines 2140 | -9/Materials | Build established: Scavenger-Mutant 2405 | -9/Materials | Discovered new exit (range 5) 2586 | -9/Materials | Discovered new exit (range 11) 2610 | -9/Materials | Identified exit to Materials 2789 | -9/Materials | Discovered exit to Materials (range 7) 2859 | -9/Materials | Core integrity fell below 50% 3396 | -9/Materials | Repaired Imp. Aluminum Leg 3445 | -9/Materials | Core integrity fell below 20% 3592 | -9/Materials | Entered Mines 3602 | -9/Mines | Discovered exit to Materials (range 10) 3645 | -9/Mines | Assembled infested the area 3663 | -9/Mines | Destroyed by D-53 Grenadier with Mini Grenade Launcher Last Messages --------------- System corrupted: IFF burst signal emitted. LOCATION=MINES GOAL=ESCAPE Something is scanning the area. EXIT=FOUND: MATERIALS K-01 Serf collects debris. Kicked U-05 Engineer. Searching scrap... Found Imp. Hover Unit. Found Med. Armor Plating. Found Beam Rifle. Found 56 Matter. Kicked U-05 Engineer. K-01 Serf collects debris. ALERT: Infestation in the mines, dispatching Demolisher response squad. C-30 ARC bursts open, deploying its payload. D-53 Grenadier unfolds itself. System corrupted: Matter fused (-6). U-05 Engineer builds a Wall. Map ----- +----------------------------------------------------+ | | | | | | | | | | | | | | | | | | | | | | | | | | | | | | | ????????????????????????????????????????????? | | ????????????????????????????????????????????? | | ??????????#########?????????????????????????? | | ??????????# #?????????????????????????? | | ??????????# < #?????????##??????????????? | | ??????????# #####????# ##?????????????? | | ??????????# ## ##### #?????????????? | | ??????????# =[! # # #??????????????? | | ??????????###%##### #???????????????? | | ??????#######%#???# #???????????????? | | ?????## #???# @ #???????????????? | | ????## ### #???# #???????????????? | | ????# ### #### # #??????????????? | | ????# "% d #?????????????????? | | ????## ######### #????????????????? | | ?????## #???????## ??????????????? | | ??????# ????????### # ???????????? | | ??????# #?????????###u ### ?????????? | | ??????# #???????????? ##??? #?????????? | | ??????## ##???????????? u##????????????????? | | ???????# #????????????? #?????????????????? | | ???????# #????????????? #?????????????????? | | ???????? #????????????? #?????????????????? | | ???????? #?????????????"" #?????????????????? | | ???????? #?????????????"" #?????????????????? | | ???????? ??????????????" #?????????????????? | | ???????? #??????????????? #?????????????????? | | ???????? ?????????????????#?????????????????? | | ???????? ???????????????????????????????????? | | ????????????????????????????????????????????? | | ????????????????????????????????????????????? | | ????????????????????????????????????????????? | | ????????????????????????????????????????????? | | ????????????????????????????????????????????? | | ????????????????????????????????????????????? | +----------------------------------------------------+ Best States ------------- Heat Dissipation 28 Energy Generation 12 Energy Capacity 265 Matter Stores 300 Matter Capacity 300 Sight Range 16 Robot Scan Range 14 Terrain Scan Range 16 Terrain Scan Density 10 Evasion (%) 55 Recoil Reduction 3 Item Schematics ----------------- None Robot Schematics ------------------ None Fabricated ------------ Nothing Alien Tech Used ----------------- None Achievements -------------- None Challenges ------------ None Game ------ Seed DeepFissionDoomcannon Manual? 0 Play Time 00:42:05 Cumulative 3.9 hours Start 2024.11.24 @ 18:45:03 End 2024.11.24 @ 22:55:46 Sessions 3 Manual Loads 0 Difficulty Rogue Special Mode None Game No. 5 Rogue 5 Adventurer 0 Explorer 0 Win Type - Total 0 Types 0/0/0/0/0/0/0/0/0 Lore% 6 Gallery% 5 Achievement% 5 Wizard Run 0 Options --------- Layout 1 ASCII 0 Keyboard 0 Movement Mouse Keybinds 0 Fullscreen 2 Font 24/Smallcaps Map View 50x35 Zoom Use 0% Tactical HUD 0 Map Filters NONE Filters NONE Steam 1 RUN: b3164ada-4ff5-4f14-a172-2915e271e0df